bitfinex/quotes_BTCUSD_20241130
["timestamp","ask_amount","ask_price","bid_price","bid_amount"]
[1732954672784,0.1348668,96959.0,96958.0,0.026]
[1732954673205,0.0317308,96959.0,96958.0,0.026]
[1732954673623,0.0317308,96959.0,96958.0,0.031]
[1732954673822,0.0317308,96959.0,96958.0,0.028]
[1732954674071,0.0317308,96959.0,96958.0,0.023]
[1732954674511,0.0317308,96959.0,96958.0,0.1595]
[1732954674742,0.0017308,96959.0,96958.0,0.1545]
[1732954674955,0.0017308,96959.0,96958.0,0.1515]
[1732954675208,0.0017308,96959.0,96958.0,0.1595]
[1732954675418,0.0017308,96959.0,96958.0,0.257637]
[1732954675631,0.0017308,96959.0,96958.0,0.259637]
[1732954676293,0.0017308,96959.0,96958.0,0.1565]
[1732954676525,0.0017308,96959.0,96958.0,0.259637]
[1732954676957,0.0017308,96959.0,96958.0,0.257637]
[1732954676958,0.0317308,96959.0,96958.0,0.257637]
[1732954677239,0.0317308,96959.0,96958.0,0.254637]
[1732954677448,0.0317308,96959.0,96958.0,0.260637]
[1732954677656,0.0317308,96959.0,96958.0,0.254637]
[1732954677873,0.0317308,96959.0,96958.0,0.262637]
[1732954678102,0.0317308,96959.0,96958.0,0.265637]
[1732954678593,0.0317308,96959.0,96958.0,0.262637]
[1732954678818,0.0317308,96959.0,96958.0,0.266637]
[1732954679493,0.0317308,96959.0,96958.0,0.36948221]
[1732954681900,0.0017308,96959.0,96958.0,0.36948221]
[1732954684255,0.0017308,96959.0,96958.0,0.52733709]
[1732954684867,0.0017308,96959.0,96958.0,0.52333709]
[1732954685085,0.0017308,96959.0,96958.0,0.51533709]
[1732954685289,0.0017308,96959.0,96958.0,0.51633709]
[1732954685501,0.0367308,96959.0,96958.0,0.51733709]
[1732954685704,0.0367308,96959.0,96958.0,0.51633709]
[1732954687421,0.0367308,96959.0,96958.0,0.51533709]
[1732954687634,0.0317308,96959.0,96958.0,0.51533709]
[1732954687849,0.0317308,96959.0,96958.0,0.51633709]
[1732954688070,0.0317308,96959.0,96958.0,0.51533709]
[1732954688519,0.0317308,96959.0,96958.0,0.51633709]
[1732954688925,0.0317308,96959.0,96958.0,0.51733709]
[1732954690706,0.0317308,96959.0,96958.0,0.51733709]
[1732954691817,0.0017308,96959.0,96958.0,0.51733709]
[1732954700819,0.0017308,96959.0,96958.0,0.51533709]
[1732954701307,0.0017308,96959.0,96958.0,0.51633709]
[1732954701539,0.0017308,96959.0,96958.0,0.51533709]
[1732954706855,0.0008653,96966.0,96965.0,0.40908388]
[1732954707058,0.0008653,96966.0,96965.0,0.51192909]
[1732954715592,0.0008653,96966.0,96965.0,0.52317441]
[1732954717828,0.0008653,96966.0,96965.0,0.53317441]
[1732954724090,0.0008653,96966.0,96965.0,0.52317441]
[1732954724437,0.0008653,96966.0,96965.0,0.53317441]
[1732954725507,0.0008653,96966.0,96965.0,0.52317441]
[1732954725718,0.0008653,96966.0,96965.0,0.53317441]
[1732954725920,0.0008653,96966.0,96965.0,0.44337441]
[1732954731749,0.00072659,96966.0,96965.0,0.44337441]
[1732954736119,0.00072659,96966.0,96965.0,0.39021953]
[1732954741059,0.00072659,96966.0,96965.0,0.39121953]
[1732954741274,0.00072659,96966.0,96965.0,0.39221953]
[1732954742533,0.00072659,96966.0,96965.0,0.39221953]
[1732954745407,0.00072659,96966.0,96965.0,0.52477441]
[1732954746565,0.00072659,96966.0,96965.0,0.52377441]
[1732954746993,0.00272659,96966.0,96965.0,0.52377441]
[1732954747260,0.00272659,96966.0,96965.0,0.52277441]
[1732954747487,0.00472659,96966.0,96965.0,0.52377441]
[1732954747682,0.00072659,96966.0,96965.0,0.52277441]
[1732954747972,0.00472659,96966.0,96965.0,0.52377441]
[1732954748411,0.03672659,96966.0,96965.0,0.52377441]
[1732954749550,0.01272659,96966.0,96965.0,0.52377441]
[1732954750195,0.01472659,96966.0,96965.0,0.52277441]
[1732954750633,0.01672659,96966.0,96965.0,0.52377441]
[1732954750878,0.01272659,96966.0,96965.0,0.52277441]
[1732954751113,0.0311348,96966.0,96965.0,0.55377441]
[1732954751348,0.0351348,96966.0,96965.0,0.56377441]
[1732954751541,0.034,96966.0,96965.0,1.06565384]
[1732954752020,0.0008652,96969.0,96968.0,0.04785488]
[1732954752232,0.0008652,96969.0,96968.0,0.55270496]
[1732954752437,0.0008652,96969.0,96968.0,0.55212609]
[1732954760238,2e-07,96969.0,96968.0,0.55212609]
[1732954762130,4e-07,96974.0,96973.0,0.01785488]
[1732954762393,4e-07,96974.0,96973.0,0.5309456]
[1732954762603,8e-07,96979.0,96978.0,0.42627088]
[1732954762821,8e-07,96979.0,96978.0,0.52911609]
[1732954763473,0.0002,96989.0,96985.0,0.00785488]
[1732954763680,0.0002,96989.0,96985.0,0.52093261]
[1732954763889,0.0002,96989.0,96985.0,0.51910809]
[1732954764457,0.0002,96989.0,96985.0,0.54210809]
[1732954765662,0.0002,96989.0,96985.0,0.54310809]
[1732954766923,4e-07,96986.0,96985.0,0.55310809]
[1732954767162,4e-07,96989.0,96988.0,0.45015988]
[1732954767376,4e-07,96989.0,96988.0,0.55300509]
[1732954768206,6e-07,97014.0,97013.0,0.26093288]
[1732954768444,0.02984368,97014.0,97013.0,0.54297809]
[1732954768960,0.02984368,97014.0,97013.0,0.55297809]
[1732954770530,0.02984368,97014.0,97013.0,0.56197809]
[1732954770782,0.02984368,97014.0,97013.0,0.55297809]
[1732954770994,0.00083004,97032.0,97021.0,0.29092488]
[1732954771198,0.00092482,97022.0,97021.0,0.55297009]
[1732954773794,0.00067303,97022.0,97021.0,0.55297009]
[1732954779062,0.00067303,97022.0,97021.0,0.55497009]
[1732954780088,0.00067303,97022.0,97021.0,0.55597009]
[1732954780295,0.00067303,97022.0,97021.0,0.55397009]
[1732954780561,0.00067303,97022.0,97021.0,0.55497009]
[1732954780780,0.00067303,97022.0,97021.0,0.55597009]
[1732954780982,0.00067303,97022.0,97021.0,0.55397009]
[1732954781290,0.00067303,97022.0,97021.0,0.55497009]
[1732954781417,0.00067303,97022.0,97021.0,0.55297009]
[1732954788374,0.00067303,97022.0,97021.0,0.54297009]
[1732954788584,0.00067303,97022.0,97021.0,0.55297009]
[1732954792635,0.00067303,97022.0,97021.0,0.54297009]
[1732954793040,0.00067303,97022.0,97021.0,0.41677009]
[1732954793257,0.00067303,97022.0,97021.0,0.42677009]
[1732954793467,0.00067303,97022.0,97021.0,0.41677009]
[1732954796767,0.00067303,97022.0,97021.0,0.41777009]
[1732954797413,0.00067303,97022.0,97021.0,0.41677009]
[1732954798093,0.00067303,97022.0,97021.0,0.41777009]
[1732954798320,0.00067303,97022.0,97021.0,0.41677009]
[1732954802263,0.00067303,97022.0,97021.0,0.41763489]
[1732954803188,0.00067303,97022.0,97021.0,0.38678001]
[1732954805875,0.00067303,97022.0,97021.0,0.40978001]
[1732954848516,0.00067303,97022.0,97021.0,0.53748001]
[1732954855340,0.00067303,97022.0,97021.0,0.40978001]
[1732954855849,0.07897303,97022.0,97021.0,0.25978001]
[1732954856050,0.07897303,97022.0,97021.0,0.1339348]
[1732954856051,0.11005855,97022.0,97021.0,0.1339348]
[1732954857125,0.10778855,97022.0,97021.0,0.1339348]
[1732954857606,0.11478855,97022.0,97021.0,0.0318648]
[1732954858063,0.21785755,97022.0,97021.0,0.0318648]
[1732954858306,0.21085755,97022.0,97021.0,0.0308648]
[1732954858531,0.21085755,97022.0,97021.0,0.0008648]
[1732954858747,0.11378855,97022.0,97021.0,0.0008648]
[1732954858990,0.21685755,97022.0,97021.0,0.0008648]
[1732954859216,0.21685755,97022.0,97021.0,0.0088648]
[1732954859217,0.21785755,97022.0,97021.0,0.0088648]
[1732954859487,0.21785755,97022.0,97021.0,0.0388648]
[1732954859718,0.11478855,97022.0,97021.0,0.0388648]
[1732954859957,0.21785755,97022.0,97021.0,0.0388648]
[1732954860190,0.11478855,97022.0,97021.0,0.0388648]
[1732954860428,0.21985755,97022.0,97021.0,0.0398648]
[1732954860893,0.21785755,97022.0,97021.0,0.0388648]
[1732954861142,0.21785755,97022.0,97021.0,0.0438648]
[1732954861373,0.21958815,97022.0,97021.0,0.0438648]
[1732954861645,0.11651915,97022.0,97021.0,0.0438648]
[1732954861870,0.11651915,97022.0,97021.0,0.1469348]
[1732954864557,0.03981612,97022.0,97021.0,0.1469348]
[1732954868258,0.03981612,97022.0,97021.0,0.0438648]
[1732954868497,0.14288512,97022.0,97021.0,0.0438648]
[1732954868720,0.03981612,97022.0,97021.0,0.0438648]
[1732954868944,0.14288512,97022.0,97021.0,0.0438648]
[1732954869172,0.03981612,97022.0,97021.0,0.0438648]
[1732954870154,0.14288512,97022.0,97021.0,0.0438648]
[1732954870365,0.03981612,97022.0,97021.0,0.0438648]
[1732954870582,0.14288512,97022.0,97021.0,0.0438648]
[1732954870987,0.27148512,97022.0,97021.0,0.0438648]
[1732954873928,0.37433033,97022.0,97021.0,0.0438648]
[1732954874162,0.39479644,97022.0,97021.0,0.0438648]
[1732954883303,0.40479644,97022.0,97021.0,0.0438648]
[1732954883510,0.39779644,97022.0,97021.0,0.0358648]
[1732954883677,0.39779644,97022.0,97021.0,0.0308648]
[1732954883890,0.40779644,97022.0,97021.0,0.0318648]
[1732954884538,0.27191132,97022.0,97021.0,0.0308648]
[1732954884745,0.27191132,97022.0,97021.0,0.0318648]
[1732954884944,0.37498032,97022.0,97021.0,0.0338648]
[1732954885167,0.37498032,97022.0,97021.0,0.0318648]
[1732954885555,0.37498032,97022.0,97021.0,0.0328648]
[1732954889870,0.37498032,97022.0,97021.0,0.0028648]
[1732954891937,0.39111363,97022.0,97021.0,0.0028648]
[1732954895015,0.39111363,97022.0,97021.0,0.0024518]
[1732954895519,0.42498246,97022.0,97021.0,0.0024518]
[1732954896355,0.39284423,97022.0,97021.0,0.0024518]
[1732954897321,0.42498187,97022.0,97021.0,0.0024518]
[1732954902384,0.42498187,97022.0,97021.0,0.0014518]
[1732954902760,0.42798187,97022.0,97021.0,0.0014518]
[1732954902967,0.42798187,97022.0,97021.0,0.0004518]
[1732954903181,0.42898187,97022.0,97021.0,0.0004518]
[1732954906118,0.45898187,97022.0,97021.0,0.0004518]
[1732954909248,0.5473391,97022.0,97021.0,0.0004518]
[1732954910080,0.45898187,97022.0,97021.0,0.0004518]
[1732954921950,0.41348187,97022.0,97021.0,0.0004518]
[1732954922165,0.33038187,97022.0,97021.0,0.0004518]
[1732954927166,0.33038187,97022.0,97021.0,0.0781518]
[1732954927167,0.31424856,97022.0,97021.0,0.0781518]
[1732954929461,0.31424856,97022.0,97021.0,0.1600518]
[1732954932512,0.31424856,97022.0,97021.0,0.0781518]
[1732954933188,0.113076,97015.0,97014.0,0.111]
[1732954933440,0.21592121,97015.0,97014.0,0.111]
[1732954936254,0.21592121,97015.0,97014.0,0.1585]
[1732954938492,0.22687673,97015.0,97014.0,0.1585]
[1732954940618,0.22687673,97015.0,97014.0,0.1593653]
[1732954940879,0.22687673,97015.0,97014.0,0.11679267]
[1732954945767,0.0017306,97021.0,97014.0,0.11679267]
[1732954945768,0.0017306,97021.0,97014.0,0.0308653]
[1732954945979,0.10284521,97020.0,97019.0,0.1285]
[1732954946198,0.20591621,97020.0,97019.0,0.1585]
[1732954947251,0.20591621,97020.0,97019.0,0.1605]
[1732954948557,0.20591621,97020.0,97019.0,0.1625]
[1732954964748,0.20764701,97020.0,97019.0,0.1625]
[1732954978566,0.20764701,97020.0,97019.0,0.034]
[1732954979497,0.23986154,97020.0,97019.0,0.034]
[1732954980935,0.23986154,97020.0,97019.0,0.1593]
[1732954982153,0.20764701,97020.0,97019.0,0.1593]
[1732954982383,0.23987226,97020.0,97019.0,0.1593]
[1732954982554,0.20764701,97020.0,97019.0,0.1593]
[1732954982769,0.23987198,97020.0,97019.0,0.1593]
[1732954982985,0.20764701,97020.0,97019.0,0.1593]
[1732954983410,0.23987211,97020.0,97019.0,0.1593]
[1732954983672,0.412267,97025.0,97019.0,0.1593]
[1732954983673,0.01613528,97036.0,97035.0,0.103055]
[1732954983866,0.01613528,97036.0,97023.0,0.16]
[1732954983867,0.0008648,97054.0,97038.0,0.133052]
[1732954984089,0.0008648,97054.0,97038.0,0.293052]
[1732954984304,0.0008648,97054.0,97043.0,0.103047]
[1732954984551,0.0008648,97054.0,97043.0,0.211147]
[1732954985830,0.0008648,97054.0,97043.0,0.221147]
[1732954986679,0.0008648,97054.0,97043.0,0.235147]
[1732954987050,0.0008648,97054.0,97043.0,0.226147]
[1732954987313,0.0008648,97054.0,97043.0,0.235147]
[1732954990678,0.0008648,97054.0,97043.0,0.225147]
[1732954991119,0.103037,97052.0,97043.0,0.225147]
[1732954991340,0.10310037,97051.0,97043.0,0.225147]
[1732954992286,0.10324,97049.0,97043.0,0.225147]
[1732954992529,0.103911,97044.0,97043.0,0.044]
[1732954993659,0.000865,97044.0,97043.0,0.03]
[1732954993887,0.103911,97044.0,97043.0,0.039]
[1732954994827,0.103911,97044.0,97043.0,0.033]
[1732954995276,0.103911,97044.0,97043.0,0.036]
[1732954995728,0.103911,97044.0,97043.0,0.04]
[1732954996278,0.103911,97044.0,97043.0,0.034]
[1732954996486,0.10305,97041.0,97037.0,0.03]
[1732954996699,0.10305,97040.0,97037.0,0.03]
[1732954996931,0.103049,97041.0,97037.0,0.03]
[1732954997163,0.10305,97040.0,97037.0,0.03]
[1732954997400,0.206096,97042.0,97038.0,0.03]
[1732954997623,0.103048,97042.0,97038.0,0.03]
[1732954998263,0.001865,97044.0,97038.0,0.03]
[1732954998496,0.103047,97043.0,97038.0,0.03]
[1732954998735,0.001,97040.0,97038.0,0.133051]
[1732954998972,0.103051,97039.0,97038.0,0.03]
[1732954999202,0.103051,97039.0,97038.0,0.034]
[1732954999650,0.001,97040.0,97038.0,0.03]
[1732955000112,0.001,97040.0,97039.0,0.133051]
[1732955000330,0.001,97040.0,97039.0,0.03]
[1732955000545,0.206957,97044.0,97039.0,0.03]
[1732955000764,0.103047,97043.0,97039.0,0.03]
[1732955000976,0.001,97042.0,97039.0,0.03]
[1732955001200,0.001,97042.0,97040.0,0.03]
[1732955001863,0.000865,97044.0,97040.0,0.03]
[1732955002084,0.103048,97042.0,97040.0,0.03]
[1732955002303,0.001,97042.0,97040.0,0.03]
[1732955002527,0.001,97042.0,97041.0,0.03]
[1732955003890,0.001,97042.0,97041.0,0.004]
[1732955004072,0.002,97042.0,97041.0,0.004]
[1732955004279,0.001,97042.0,97041.0,0.004]
[1732955004454,0.001,97042.0,97041.0,0.266749]
[1732955004642,0.002,97042.0,97041.0,0.273749]
[1732955004851,0.001,97042.0,97041.0,0.266749]
[1732955005108,0.002,97042.0,97041.0,0.269749]
[1732955005609,0.000865,97044.0,97043.0,0.133047]
[1732955005796,0.000865,97044.0,97043.0,0.214547]
[1732955007257,0.000865,97044.0,97043.0,0.218547]
[1732955007460,0.000865,97044.0,97043.0,0.265247]
[1732955008144,0.001865,97044.0,97043.0,0.272247]
[1732955010177,0.001865,97044.0,97043.0,0.422247]
[1732955010634,0.001865,97044.0,97043.0,0.432247]
[1732955022617,0.001865,97044.0,97043.0,0.422247]
[1732955023766,0.001865,97044.0,97043.0,0.432247]
[1732955024224,0.001865,97044.0,97043.0,0.422247]
[1732955024476,0.001865,97044.0,97043.0,0.432247]
[1732955031964,0.001865,97044.0,97043.0,0.422247]
[1732955035585,0.001865,97044.0,97043.0,0.432247]
[1732955037580,0.001865,97044.0,97043.0,0.53509221]
[1732955054828,0.001865,97044.0,97043.0,0.53495446]
[1732955063256,0.001865,97044.0,97043.0,0.29390925]
[1732955065506,0.001865,97044.0,97043.0,0.294047]
[1732955066351,0.001865,97044.0,97043.0,0.191]
[1732955067036,0.001865,97044.0,97043.0,0.294047]
[1732955067446,0.001865,97044.0,97043.0,0.191]
[1732955068110,0.001865,97044.0,97043.0,0.294047]
[1732955068541,0.001865,97044.0,97043.0,0.191]
[1732955068978,0.001865,97044.0,97043.0,0.1918651]
[1732955069243,0.001865,97044.0,97043.0,0.1449121]
[1732955069514,0.001865,97044.0,97043.0,0.2949121]
[1732955072905,0.001865,97044.0,97043.0,0.04789528]
[1732955073150,0.104911,97044.0,97043.0,0.04789528]
[1732955074028,0.001865,97044.0,97043.0,0.04789528]
[1732955078185,0.104911,97044.0,97043.0,0.04789528]
[1732955078985,0.001865,97044.0,97043.0,0.04789528]
[1732955079706,0.104911,97044.0,97043.0,0.04789528]
[1732955079885,0.001865,97044.0,97043.0,0.04789528]
[1732955091977,0.001865,97044.0,97043.0,0.18809828]
[1732955092456,0.001865,97044.0,97043.0,0.29114528]
[1732955102535,0.001865,97044.0,97043.0,0.03809828]
[1732955103005,0.001865,97044.0,97043.0,0.29114528]
[1732955103468,0.001865,97044.0,97043.0,0.18809828]
[1732955104111,0.001865,97044.0,97043.0,0.14114528]
[1732955104631,0.001865,97044.0,97043.0,0.29114528]
[1732955105356,0.001865,97044.0,97043.0,0.18809828]
[1732955105857,0.001865,97044.0,97043.0,0.03809828]
[1732955106238,0.001865,97044.0,97043.0,0.18809828]
[1732955107740,0.001865,97044.0,97043.0,0.03809828]
[1732955108051,0.104911,97044.0,97043.0,0.03809828]
[1732955108346,0.104911,97044.0,97023.0,0.03]
[1732955108347,0.103057,97033.0,97023.0,0.03]
[1732955108534,0.229557,97033.0,97023.0,0.03]
[1732955109357,0.229557,97033.0,97024.0,0.03]
[1732955110452,0.229557,97033.0,97032.0,0.0028652]
[1732955111342,0.229557,97033.0,97032.0,0.0038652]
[1732955113001,0.33240221,97033.0,97032.0,0.0038652]
[1732955113893,0.33240221,97033.0,97032.0,0.0018652]
[1732955114095,0.33340221,97033.0,97032.0,0.0018652]
[1732955114954,0.33340221,97033.0,97032.0,0.0008652]
[1732955116424,0.33440221,97033.0,97032.0,0.0008652]
[1732955116514,0.34550368,97033.0,97032.0,0.0008652]
[1732955117561,0.34550368,97033.0,97032.0,0.0308652]
[1732955122826,0.34550368,97033.0,97032.0,0.0008652]
[1732955124430,0.26620368,97033.0,97032.0,0.0008652]
[1732955126037,0.21900368,97033.0,97032.0,0.0008652]
[1732955127092,0.21800368,97033.0,97032.0,0.0008652]
[1732955127685,0.21700368,97033.0,97032.0,0.0008652]
[1732955128136,0.21800368,97033.0,97032.0,0.0008652]
[1732955128500,0.21900368,97033.0,97032.0,0.0008652]
[1732955128684,0.21800368,97033.0,97032.0,0.0008652]
[1732955128893,0.21900368,97033.0,97032.0,0.0008652]
[1732955129126,0.21800368,97033.0,97032.0,0.0008652]
[1732955129680,0.21900368,97033.0,97032.0,0.0008652]
[1732955129875,0.21800368,97033.0,97032.0,0.0008652]
[1732955130271,0.21900368,97033.0,97032.0,0.0008652]
[1732955130709,0.21800368,97033.0,97032.0,0.0008652]
[1732955131374,0.21700368,97033.0,97032.0,0.0008652]
[1732955131791,0.21800368,97033.0,97032.0,0.0008652]
[1732955132654,0.21700368,97033.0,97032.0,0.0008652]
[1732955132874,0.21800368,97033.0,97032.0,0.0008652]
[1732955133249,0.22000368,97033.0,97032.0,0.0008652]
[1732955133374,0.21800368,97033.0,97032.0,0.0008652]
[1732955135186,0.21900368,97033.0,97032.0,0.0008652]
[1732955137215,0.26025968,97033.0,97032.0,0.0008652]
[1732955143427,0.29247635,97033.0,97032.0,0.0008652]
[1732955144554,0.29247635,97033.0,97032.0,0.0778652]
[1732955144779,0.29247635,97033.0,97032.0,0.0308652]
[1732955145786,0.29247803,97033.0,97032.0,0.0308652]
[1732955146109,0.26025968,97033.0,97032.0,0.0308652]
[1732955146330,0.29247838,97033.0,97032.0,0.0308652]
[1732955146852,0.29247869,97033.0,97032.0,0.0308652]
[1732955147503,0.29247869,97033.0,97032.0,0.0008652]
[1732955148614,0.26025968,97033.0,97032.0,0.0008652]
[1732955149035,0.29247909,97033.0,97032.0,0.0008652]
[1732955156039,0.29247909,97033.0,97032.0,0.0308652]
[1732955156349,0.29247909,97033.0,97032.0,0.0538652]
[1732955159079,0.29247909,97033.0,97032.0,0.04850509]
[1732955159346,0.29247909,97033.0,97032.0,0.04800971]
[1732955159759,0.29147909,97033.0,97032.0,0.04800971]
[1732955159989,0.29047909,97033.0,97032.0,0.04800971]
[1732955160532,0.29047909,97033.0,97032.0,0.04887481]
[1732955165468,0.29047909,97033.0,97032.0,0.0008651]
[1732955170616,0.29047909,97033.0,97032.0,0.0004781]
[1732955172632,0.29220949,97033.0,97032.0,0.0004781]
[1732955177742,0.17826281,97033.0,97032.0,0.09408781]
[1732955178156,0.1460434,97033.0,97032.0,0.09408781]
[1732955178690,0.1460434,97033.0,97032.0,0.07108781]
[1732955178873,0.17826359,97033.0,97032.0,0.07108781]
[1732955179296,0.1460434,97033.0,97032.0,0.07108781]
[1732955180122,0.1460434,97033.0,97032.0,0.0004781]
[1732955181642,0.1782629,97033.0,97032.0,0.0004781]
[1732955185128,0.28110811,97033.0,97032.0,0.0004781]
[1732955186341,0.28310811,97033.0,97032.0,0.0004781]
[1732955187652,0.28410811,97033.0,97032.0,0.0004781]
[1732955188094,0.28310811,97033.0,97032.0,0.0004781]
[1732955188532,0.28310811,97033.0,97032.0,0.02548781]
[1732955189062,0.28410811,97033.0,97032.0,0.02548781]
[1732955189476,0.28410811,97033.0,97032.0,0.0004781]
[1732955198291,0.28310811,97033.0,97032.0,0.0004781]
[1732955198719,0.28110811,97033.0,97032.0,0.0004781]
[1732955201049,0.24888861,97033.0,97032.0,0.0004781]
[1732955202253,0.24528854,97033.0,97032.0,0.00023438]
[1732955202462,0.27749699,97033.0,97032.0,0.00023438]
[1732955202910,0.14244333,97033.0,97032.0,0.00023438]
[1732955203157,0.14244333,97033.0,97032.0,0.07114409]
[1732955205128,0.14244333,97033.0,97032.0,0.07092436]
[1732955210175,0.0429864,97033.0,97032.0,0.07092436]
[1732955211438,0.1460434,97033.0,97032.0,0.07092436]
[1732955211907,0.0429864,97033.0,97032.0,0.07092436]
[1732955212098,0.1460434,97033.0,97032.0,0.07092436]
[1732955220241,0.24888861,97033.0,97032.0,0.02502436]
[1732955220413,0.28109461,97033.0,97032.0,0.02502436]
[1732955221283,0.28109461,97033.0,97032.0,1.465e-05]
[1732955221688,0.24888861,97033.0,97032.0,1.465e-05]
[1732955221917,0.28109369,97033.0,97032.0,1.465e-05]
[1732955222210,0.24888861,97033.0,97032.0,1.465e-05]
[1732955222356,0.28109403,97033.0,97032.0,1.465e-05]
[1732955222599,0.28109429,97033.0,97032.0,1.465e-05]
[1732955222987,0.24888861,97033.0,97032.0,1.465e-05]
[1732955224220,0.28109524,97033.0,97032.0,1.465e-05]
[1732955225451,0.2810961,97033.0,97032.0,1.465e-05]
[1732955225709,0.24888861,97033.0,97032.0,1.465e-05]
[1732955226185,0.28109678,97033.0,97032.0,1.465e-05]
[1732955228414,0.24888861,97033.0,97032.0,1.465e-05]
[1732955228683,0.28110062,97033.0,97032.0,1.465e-05]
[1732955228887,0.24888861,97033.0,97032.0,1.465e-05]
[1732955229131,0.28110044,97033.0,97032.0,1.465e-05]
[1732955230375,0.24888861,97033.0,97032.0,1.465e-05]
[1732955230540,0.28110206,97033.0,97032.0,1.465e-05]
[1732955236036,0.28110206,97033.0,97032.0,0.07342436]
[1732955237985,0.0429864,97033.0,97032.0,0.25428236]
[1732955238256,0.0429864,97033.0,97032.0,0.26428236]
[1732955239101,0.0017304,97033.0,97032.0,0.26428236]
[1732955240440,0.0017304,97033.0,97032.0,0.27536382]
[1732955241206,0.0027304,97033.0,97032.0,0.29036382]
[1732955244334,0.0027304,97033.0,97032.0,0.27126616]
[1732955244530,0.0027304,97033.0,97032.0,0.2601847]
[1732955252899,0.0027304,97033.0,97032.0,0.2610499]
[1732955256280,0.0027304,97033.0,97032.0,0.23173291]
[1732955258337,0.0027304,97033.0,97032.0,0.28053291]
[1732955265809,0.0027304,97033.0,97032.0,0.29053291]
[1732955284092,0.0027304,97033.0,97032.0,0.44053291]
[1732955284279,0.0027304,97033.0,97032.0,0.54337812]
[1732955285234,0.0027304,97033.0,97032.0,0.44053291]
[1732955295909,0.0027304,97033.0,97032.0,0.39173291]
[1732955296163,0.0027304,97033.0,97032.0,0.31393291]
[1732955298344,0.0027304,97033.0,97032.0,0.36073291]
[1732955306994,0.0027304,97033.0,97032.0,0.35773291]
[1732955318904,0.0027304,97033.0,97032.0,0.31093291]
[1732955340333,0.0476,97048.0,97047.0,0.03200971]
[1732955340334,0.01145491,97048.0,97047.0,0.03200971]
[1732955341574,0.0761,97050.0,97048.0,0.03200971]
[1732955343209,0.0761,97050.0,97048.0,0.02880971]
[1732955343843,0.0761,97050.0,97048.0,0.03180971]
[1732955344696,6.137e-05,97051.0,97048.0,0.03180971]
[1732955345236,0.0010653,97049.0,97048.0,0.03180971]
[1732955350535,0.0010653,97049.0,97048.0,0.13485071]
[1732955351351,0.0010653,97049.0,97048.0,0.03180971]
[1732955352423,0.0010653,97049.0,97048.0,0.13485071]
[1732955361751,0.0010653,97049.0,97048.0,0.18285071]
[1732955367562,0.0010653,97049.0,97048.0,0.048]
[1732955367800,0.0010653,97049.0,97048.0,0.151041]
[1732955368969,0.0010653,97049.0,97048.0,0.1527712]
[1732955369632,0.00102135,97049.0,97048.0,0.1527712]
[1732955374244,0.12232135,97049.0,97048.0,0.0017302]
[1732955377569,0.22536135,97049.0,97048.0,0.0017302]
[1732955377781,0.12232135,97049.0,97048.0,0.0017302]
[1732955378194,0.22536135,97049.0,97048.0,0.0017302]
[1732955378398,0.12232135,97049.0,97048.0,0.0017302]
[1732955378576,0.22536135,97049.0,97048.0,0.0017302]
[1732955384993,0.10406135,97049.0,97048.0,0.0017302]
[1732955389870,0.00102135,97049.0,97038.0,0.0197606]
[1732955390080,0.103044,97046.0,97038.0,0.1228126]
[1732955390490,0.12872452,97048.0,97038.0,0.0197606]
[1732955390656,0.103043,97047.0,97039.0,0.103051]
[1732955390872,0.103043,97047.0,97038.0,0.0197606]
[1732955391124,0.103043,97047.0,97039.0,0.10305]
[1732955391322,0.103043,97047.0,97038.0,0.0207606]
[1732955391531,0.12872452,97048.0,97038.0,0.0207606]
[1732955391719,0.06436226,97048.0,97041.0,0.0779]
[1732955392119,0.06436226,97048.0,97042.0,0.103047]
[1732955392325,0.06436226,97048.0,97041.0,0.0779]
[1732955392603,0.06436226,97048.0,97042.0,0.103047]
[1732955392808,0.06436226,97048.0,97042.0,0.046]
[1732955393488,0.06436226,97048.0,97043.0,0.103046]
[1732955393749,0.00102135,97049.0,97042.0,0.046]
[1732955394021,0.00102135,97049.0,97043.0,0.103046]
[1732955394315,0.00102135,97049.0,97042.0,0.048]
[1732955394533,0.00102135,97049.0,97042.0,0.046]
[1732955394663,0.00102135,97049.0,97043.0,0.002]
[1732955394863,0.00102135,97049.0,97043.0,0.208093]
[1732955395070,0.00102135,97049.0,97043.0,0.002]
[1732955395303,0.00102135,97049.0,97046.0,0.103043]
[1732955395742,0.00102135,97049.0,97045.0,0.103044]
[1732955395969,0.00102135,97049.0,97043.0,0.002]
[1732955396203,0.00102135,97049.0,97043.0,0.206094]
[1732955396425,0.00102135,97049.0,97044.0,0.103045]
[1732955396637,0.00102135,97049.0,97042.0,0.047]
[1732955396892,0.00102135,97049.0,97042.0,0.149047]
[1732955397084,0.00102135,97049.0,97043.0,0.004]
[1732955397356,0.00102135,97049.0,97043.0,0.001]
[1732955397758,0.00102135,97049.0,97044.0,0.003]
[1732955397971,0.00102135,97049.0,97043.0,0.104046]
[1732955398231,0.00102135,97049.0,97042.0,0.046]
[1732955398452,0.00102135,97049.0,97042.0,0.152047]
[1732955398747,0.00102135,97049.0,97043.0,0.103046]
[1732955399994,0.00102135,97049.0,97043.0,0.106046]
[1732955400648,0.00102135,97049.0,97044.0,0.103045]
[1732955401956,0.00102135,97049.0,97043.0,0.001]
[1732955402147,0.00102135,97049.0,97045.0,0.103044]
[1732955403118,0.00102135,97049.0,97043.0,0.104046]
[1732955403196,0.103041,97048.0,97039.0,0.10305]
[1732955403420,0.103043,97047.0,97039.0,0.10305]
[1732955403623,0.103043,97047.0,97044.0,0.001]
[1732955403840,0.103042,97048.0,97044.0,0.0057302]
[1732955404011,0.00102135,97049.0,97044.0,0.0047302]
[1732955404218,0.00102135,97049.0,97044.0,0.0017302]
[1732955404528,0.10406235,97049.0,97044.0,0.0017302]
[1732955404754,0.00102135,97049.0,97044.0,0.0017302]
[1732955405199,0.103042,97047.0,97044.0,0.0047302]
[1732955405422,0.103044,97045.0,97044.0,0.0047302]
[1732955405662,0.206084,97048.0,97044.0,0.0017302]
[1732955405878,0.206086,97047.0,97044.0,0.0047302]
[1732955406099,0.103044,97045.0,97044.0,0.0047302]
[1732955406534,0.103044,97045.0,97044.0,0.0057302]
[1732955406951,0.103044,97045.0,97044.0,0.0047302]
[1732955407188,0.103044,97045.0,97044.0,0.0017302]
[1732955407305,0.103044,97045.0,97044.0,0.0057302]
[1732955407802,0.103044,97045.0,97044.0,0.0037302]
[1732955408023,0.103044,97045.0,97044.0,0.0067302]
[1732955408265,0.103044,97045.0,97044.0,0.0047302]
[1732955408467,0.20588921,97045.0,97044.0,0.0047302]
[1732955409660,0.103044,97045.0,97044.0,0.0057302]